bitfinex/quotes_BTCUSD_20250224
["timestamp","ask_amount","ask_price","bid_price","bid_amount"]
[1740398769115,0.01116589,95875.0,95865.0,0.00174254]
[1740398769355,0.156457,95873.0,95866.0,0.00146017]
[1740398769560,0.01116589,95875.0,95867.0,0.00146019]
[1740398770444,0.16761989,95875.0,95866.0,0.00146014]
[1740398770652,0.156456,95874.0,95868.0,0.00146014]
[1740398771076,0.16762089,95875.0,95868.0,0.00146014]
[1740398771292,0.16761989,95875.0,95868.0,0.00146014]
[1740398771450,0.156455,95874.0,95869.0,0.00146014]
[1740398772092,0.16761989,95875.0,95869.0,0.00146014]
[1740398772296,0.01116589,95875.0,95869.0,0.00146014]
[1740398772459,0.156455,95874.0,95866.0,0.00146013]
[1740398772662,0.01116589,95875.0,95870.0,0.00146013]
[1740398772870,0.16761989,95875.0,95870.0,0.00146013]
[1740398773104,0.156455,95874.0,95870.0,0.00146013]
[1740398773548,0.156455,95874.0,95866.0,0.00146015]
[1740398773775,0.156456,95873.0,95866.0,0.00146015]
[1740398774389,0.156459,95872.0,95866.0,0.00315955]
[1740398774591,0.365063,95874.0,95866.0,0.00315955]
[1740398774821,0.01116589,95875.0,95866.0,0.00315955]
[1740398774994,0.156455,95874.0,95866.0,0.00315955]
[1740398775199,0.01116589,95875.0,95866.0,0.00315955]
[1740398775411,0.156455,95874.0,95866.0,0.00315955]
[1740398775577,0.01116589,95875.0,95866.0,0.00315955]
[1740398775795,0.156455,95874.0,95866.0,0.00315955]
[1740398776129,0.01116589,95875.0,95866.0,0.00315955]
[1740398777693,0.01116589,95875.0,95870.0,0.208615]
[1740398777866,0.01116589,95875.0,95871.0,0.15791911]
[1740398778393,0.01116589,95875.0,95871.0,0.00146011]
[1740398778523,0.01116589,95875.0,95872.0,0.156457]
[1740398778730,0.01116589,95875.0,95873.0,0.15791511]
[1740398780428,0.01116589,95875.0,95873.0,0.00146011]
[1740398780631,0.01116589,95875.0,95874.0,0.156455]
[1740398781734,0.01116589,95875.0,95873.0,0.15791511]
[1740398783055,0.01116589,95875.0,95874.0,0.156455]
[1740398783244,0.01116589,95875.0,95873.0,0.00146011]
[1740398783461,0.01116589,95875.0,95873.0,0.156456]
[1740398784545,0.01116589,95875.0,95874.0,0.156455]
[1740398784818,0.01116589,95875.0,95873.0,0.00146011]
[1740398784819,0.01116589,95875.0,95873.0,0.15791611]
[1740398785026,0.01116589,95875.0,95872.0,0.20861]
[1740398785027,0.01116589,95875.0,95874.0,0.15791509]
[1740398785379,0.01116589,95875.0,95874.0,0.156455]
[1740398787305,0.01116589,95875.0,95874.0,0.00146009]
[1740398787509,0.01116589,95875.0,95874.0,0.156455]
[1740398787709,0.01116589,95875.0,95874.0,0.15791509]
[1740398787850,0.01116589,95875.0,95874.0,0.156455]
[1740398788407,0.01116589,95875.0,95874.0,0.1579151]
[1740398788940,0.01116589,95875.0,95874.0,0.156455]
[1740398791198,0.01116589,95875.0,95874.0,0.15791506]
[1740398792948,0.01216589,95875.0,95874.0,0.15791506]
[1740398793681,0.01316589,95875.0,95874.0,0.15791506]
[1740398797867,0.01316589,95875.0,95874.0,0.26056067]
[1740398797999,0.01316589,95875.0,95874.0,0.25910069]
[1740398799210,0.01316589,95875.0,95874.0,0.26080009]
[1740398809279,0.0028499,95875.0,95874.0,0.26080009]
[1740398810448,0.0018499,95875.0,95874.0,0.26080009]
[1740398811881,0.0008499,95875.0,95874.0,0.26080009]
[1740398812043,0.0018499,95875.0,95874.0,0.26080009]
[1740398812441,0.0028499,95875.0,95874.0,0.26380009]
[1740398820290,0.0028499,95875.0,95874.0,0.41380009]
[1740398820491,0.0028499,95875.0,95874.0,0.55630009]
[1740398820650,0.0028499,95875.0,95874.0,0.87770009]
[1740398821049,0.0028499,95875.0,95874.0,1.00760009]
[1740398821794,0.0008499,95875.0,95874.0,1.01914094]
[1740398822038,0.0018499,95875.0,95874.0,1.02614094]
[1740398822277,8.2e-07,95876.0,95875.0,0.47089385]
[1740398822479,8.2e-07,95876.0,95875.0,0.70153954]
[1740398823582,8.2e-07,95876.0,95875.0,0.59163954]
[1740398823714,0.0008497,95878.0,95877.0,0.48509085]
[1740398823920,0.0008497,95878.0,95877.0,0.58773654]
[1740398825258,0.0008497,95878.0,95877.0,0.90913654]
[1740398825471,0.0018497,95878.0,95877.0,0.91613654]
[1740398825673,0.0028497,95878.0,95877.0,0.92313654]
[1740398841877,0.05600544,95919.0,95891.0,0.02]
[1740398842087,0.05352275,95978.0,95892.0,0.12410521]
[1740398842088,0.0491,95920.0,95892.0,0.12410521]
[1740398842287,0.0491,95920.0,95900.0,0.14285278]
[1740398842288,0.01056393,95919.0,95900.0,0.14285278]
[1740398842504,0.0491,95920.0,95910.0,0.156395]
[1740398842671,0.0491,95920.0,95895.0,0.02]
[1740398842672,0.19195278,95920.0,95911.0,0.10410516]
[1740398842881,0.0491,95920.0,95911.0,0.10410516]
[1740398843088,0.0491,95920.0,95912.0,0.208524]
[1740398843253,0.0491,95920.0,95913.0,0.10410512]
[1740398843636,0.04922912,95920.0,95913.0,0.10410512]
[1740398843809,0.05988941,95920.0,95918.0,0.156382]
[1740398844015,0.001,95919.0,95918.0,0.156382]
[1740398844373,0.06188941,95920.0,95919.0,0.156381]
[1740398844601,0.05988941,95920.0,95917.0,0.208511]
[1740398844811,0.05988941,95920.0,95919.0,0.156381]
[1740398845985,0.05988941,95920.0,95919.0,0.160381]
[1740398846189,0.06073921,95920.0,95919.0,0.160381]
[1740398846611,0.00097892,95920.0,95919.0,0.160381]
[1740398846842,0.00097892,95920.0,95919.0,0.16684037]
[1740398846989,0.00097892,95920.0,95919.0,0.26948606]
[1740398847172,0.00097892,95920.0,95919.0,0.26802669]
[1740398857972,0.00097892,95920.0,95919.0,0.26972549]
[1740398882286,0.08459806,95942.0,95937.0,0.156352]
[1740398882472,0.08459806,95942.0,95938.0,0.15635]
[1740398882674,0.09494935,95942.0,95925.0,0.208494]
[1740398882852,0.09494935,95942.0,95936.0,0.156352]
[1740398883051,0.09494935,95942.0,95937.0,0.156352]
[1740398883248,0.08595129,95942.0,95937.0,0.156352]
[1740398883454,0.08595129,95942.0,95936.0,0.10264569]
[1740398883641,0.08595129,95942.0,95936.0,0.25899869]
[1740398884080,0.08595129,95942.0,95936.0,0.10264569]
[1740398884288,0.08595129,95942.0,95937.0,0.002]
[1740398884593,0.08595129,95942.0,95936.0,0.10264569]
[1740398884801,0.08595129,95942.0,95936.0,0.10464569]
[1740398885834,0.08595129,95942.0,95936.0,0.26383869]
[1740398886024,0.08595129,95942.0,95936.0,0.10748569]
[1740398887035,0.08595129,95942.0,95936.0,0.26383869]
[1740398887886,0.08595129,95942.0,95936.0,0.10748569]
[1740398888089,0.08595129,95942.0,95936.0,0.26383769]
[1740398888437,0.08595129,95942.0,95936.0,0.10748569]
[1740398888648,0.01035129,95942.0,95941.0,0.156346]
[1740398888833,0.14285278,95950.0,95939.0,0.00145909]
[1740398889032,0.14298219,95950.0,95940.0,0.10410475]
[1740398889365,0.15344355,95950.0,95940.0,0.10264569]
[1740398889575,0.156334,95949.0,95940.0,0.10264569]
[1740398890400,0.30977455,95950.0,95941.0,0.002]
[1740398890550,0.156333,95949.0,95940.0,0.10264569]
[1740398890752,0.156333,95949.0,95941.0,0.003]
[1740398891178,0.30977455,95950.0,95941.0,0.003]
[1740398891384,0.30977455,95950.0,95940.0,0.10264569]
[1740398891585,0.15344355,95950.0,95940.0,0.10264569]
[1740398892508,0.156333,95949.0,95940.0,0.10264569]
[1740398893047,0.0008492,95942.0,95940.0,0.10264569]
[1740398895141,0.0008492,95942.0,95940.0,0.10564569]
[1740398895462,0.0008492,95942.0,95940.0,0.10764569]
[1740398900481,0.208444,95949.0,95940.0,0.10764569]
[1740398900687,0.156335,95948.0,95940.0,0.10764569]
[1740398901095,0.156334,95949.0,95940.0,0.10764569]
[1740398901290,0.156335,95948.0,95940.0,0.10764569]
[1740398901536,0.156335,95948.0,95940.0,0.10564569]
[1740398901737,0.156336,95948.0,95940.0,0.10564569]
[1740398902075,0.156336,95948.0,95940.0,0.10264569]
[1740398902488,0.156336,95947.0,95940.0,0.10264569]
[1740398902694,0.156335,95948.0,95940.0,0.10264569]
[1740398903420,0.15344355,95950.0,95940.0,0.10264569]
[1740398903620,0.156335,95948.0,95940.0,0.10264569]
[1740398904378,0.208444,95949.0,95940.0,0.10264569]
[1740398904538,0.156335,95948.0,95940.0,0.10264569]
[1740398904742,0.1571842,95948.0,95940.0,0.10264569]
[1740398905152,0.0008492,95948.0,95940.0,0.10264569]
[1740398905408,0.0008492,95948.0,95940.0,0.10364569]
[1740398905589,0.1571832,95948.0,95940.0,0.10364569]
[1740398905792,0.1571832,95948.0,95940.0,0.10264569]
[1740398906232,0.0008492,95948.0,95940.0,0.10264569]
[1740398907165,0.1571842,95948.0,95940.0,0.10264569]
[1740398907293,0.0008492,95948.0,95940.0,0.10264569]
[1740398907493,0.1571842,95948.0,95940.0,0.10264569]
[1740398909395,0.156337,95947.0,95940.0,0.10264569]
[1740398910498,0.0008492,95948.0,95940.0,0.10264569]
[1740398912438,0.0008492,95948.0,95940.0,0.10364569]
[1740398912669,0.1571852,95948.0,95940.0,0.10364569]
[1740398912916,0.156338,95946.0,95940.0,0.10264569]
[1740398913097,0.1571842,95948.0,95940.0,0.10264569]
[1740398913588,0.0008492,95948.0,95940.0,0.10264569]
[1740398913733,0.1571832,95948.0,95940.0,0.10264569]
[1740398914283,0.1571832,95948.0,95940.0,0.10364569]
[1740398914493,0.1571832,95948.0,95940.0,0.10264569]
[1740398914645,0.0008492,95948.0,95940.0,0.10364569]
[1740398914848,0.1571842,95948.0,95940.0,0.10364569]
[1740398915507,0.1571832,95948.0,95940.0,0.10364569]
[1740398916025,0.1571832,95948.0,95940.0,0.10264569]
[1740398916479,0.0008492,95948.0,95940.0,0.10264569]
[1740398916878,0.1571832,95948.0,95940.0,0.10264569]
[1740398917220,0.0008492,95948.0,95940.0,0.10264569]
[1740398918064,0.0008492,95948.0,95940.0,0.10434389]
[1740398918253,0.156337,95947.0,95940.0,0.10434389]
[1740398918570,0.0008492,95948.0,95940.0,0.10434389]
[1740398919456,0.0008492,95948.0,95940.0,0.10534389]
[1740398919796,0.0008492,95948.0,95940.0,0.10434389]
[1740398921211,0.0008492,95948.0,95940.0,0.26069089]
[1740398921412,0.0008492,95948.0,95940.0,0.10434389]
[1740398922100,0.1571832,95948.0,95940.0,0.10434389]
[1740398923463,0.0008492,95948.0,95940.0,0.10434389]
[1740398924705,0.0008492,95948.0,95940.0,0.26069089]
[1740398925073,0.0008492,95948.0,95940.0,0.10434389]
[1740398925458,0.1571832,95948.0,95940.0,0.10434389]
[1740398925941,0.0008492,95948.0,95940.0,0.10434389]
[1740398926576,0.0008492,95948.0,95940.0,0.26069089]
[1740398929537,0.0008492,95948.0,95940.0,0.10434389]
[1740398930240,0.0008492,95948.0,95940.0,0.26069089]
[1740398930824,0.0008492,95948.0,95941.0,0.01943374]
[1740398931608,0.156336,95947.0,95941.0,0.01943374]
[1740398932386,0.0008492,95948.0,95940.0,0.10434389]
[1740398932973,0.156336,95947.0,95940.0,0.10434389]
[1740398933932,0.0008492,95948.0,95940.0,0.10434389]
[1740398934117,0.1571832,95948.0,95940.0,0.10434389]
[1740398934543,0.1571832,95948.0,95940.0,0.10534389]
[1740398935849,0.1571832,95948.0,95940.0,0.10434389]
[1740398936051,0.0008492,95948.0,95940.0,0.10434389]
[1740398940813,0.0008492,95948.0,95940.0,0.26069089]
[1740398941131,0.0008492,95948.0,95940.0,0.26068989]
[1740398941497,0.0008492,95948.0,95941.0,0.08185911]
[1740398941612,0.0008492,95948.0,95947.0,0.136376]
[1740398942018,0.0008492,95948.0,95942.0,0.10264569]
[1740398942216,0.0008492,95948.0,95942.0,0.10410471]
[1740398942500,0.0008492,95948.0,95942.0,0.10264569]
[1740398942867,0.0008492,95948.0,95947.0,0.002]
[1740398943407,0.0008492,95948.0,95942.0,0.10364569]
[1740398944082,0.0008492,95948.0,95942.0,0.10464569]
[1740398944700,0.0008492,95948.0,95942.0,0.26098969]
[1740398945485,0.0008492,95948.0,95947.0,0.002]
[1740398945687,0.0008492,95948.0,95942.0,0.10464569]
[1740398945890,0.0008492,95948.0,95942.0,0.10664569]
[1740398946224,0.0008492,95948.0,95942.0,0.25898869]
[1740398946441,0.0008492,95948.0,95942.0,0.10264569]
[1740398946636,0.0008492,95948.0,95947.0,0.004]
[1740398946957,0.0008492,95948.0,95947.0,0.002]
[1740398947156,0.0008492,95948.0,95942.0,0.10464569]
[1740398947310,0.0008492,95948.0,95942.0,0.10664569]
[1740398948679,0.0008492,95948.0,95942.0,0.10264569]
[1740398948826,0.0008492,95948.0,95947.0,0.004]
[1740398949029,0.0008492,95948.0,95947.0,0.002]
[1740398949441,0.0008492,95948.0,95942.0,0.10464569]
[1740398949744,0.0008492,95948.0,95942.0,0.10664569]
[1740398950080,0.0008492,95948.0,95947.0,0.002]
[1740398950323,0.0008492,95948.0,95942.0,0.26098869]
[1740398950455,0.0008492,95948.0,95942.0,0.10664569]
[1740398950706,0.0008492,95948.0,95942.0,0.26298869]
[1740398951985,0.0008492,95948.0,95943.0,0.156342]
[1740398952331,0.0008492,95948.0,95944.0,0.10264569]
[1740398952530,0.0008492,95948.0,95947.0,0.002]
[1740398952937,0.0008492,95948.0,95944.0,0.10264569]
[1740398953647,0.0008492,95948.0,95947.0,0.002]
[1740398954857,0.0008492,95948.0,95944.0,0.10464569]
[1740398955465,0.0008492,95948.0,95944.0,0.10264569]
[1740398955682,0.0008492,95948.0,95947.0,0.002]
[1740398955900,0.0008492,95948.0,95947.0,0.004]
[1740398956214,0.0008492,95948.0,95944.0,0.10264569]
[1740398956466,0.0008492,95948.0,95944.0,0.10664569]
[1740398956978,0.0008492,95948.0,95944.0,0.10464569]
[1740398957425,0.0008492,95948.0,95947.0,0.002]
[1740398959695,0.0008492,95948.0,95947.0,0.004]
[1740399018826,0.208424,95958.0,95947.0,0.004]
[1740399019080,0.156325,95954.0,95947.0,0.004]
[1740399019600,0.14285278,95957.0,95947.0,0.002]
[1740399019807,0.156322,95956.0,95947.0,0.002]
[1740399020014,0.156323,95955.0,95944.0,0.10264569]
[1740399020216,0.35127978,95957.0,95944.0,0.10264569]
[1740399020423,0.156324,95955.0,95944.0,0.10264569]
[1740399022073,0.157324,95955.0,95944.0,0.10264569]
[1740399022768,0.156325,95954.0,95944.0,0.10264569]
[1740399023290,0.001,95955.0,95944.0,0.10264569]
[1740399023539,0.157323,95955.0,95944.0,0.10264569]
[1740399023879,0.156323,95955.0,95944.0,0.10264569]
[1740399024089,0.156325,95954.0,95944.0,0.10264569]
[1740399026112,0.156325,95954.0,95944.0,0.25898669]
[1740399027172,0.1571748,95954.0,95944.0,0.25898669]
[1740399028517,0.0008498,95954.0,95944.0,0.25898669]
[1740399028955,0.1571738,95954.0,95944.0,0.25898669]
[1740399029339,0.0008498,95954.0,95945.0,0.156339]
[1740399029499,0.0008498,95954.0,95946.0,0.10264569]
[1740399030399,0.1571748,95954.0,95946.0,0.10264569]
[1740399033161,0.0008498,95954.0,95946.0,0.10264569]
[1740399033802,0.0008498,95954.0,95946.0,0.25898269]
[1740399034175,0.0008498,95954.0,95946.0,0.10264569]
[1740399034591,0.0008498,95954.0,95948.0,0.156334]
[1740399034797,0.0008498,95954.0,95946.0,0.31109469]
[1740399035195,0.0008498,95954.0,95948.0,0.156334]
[1740399035646,0.0008498,95954.0,95949.0,0.156332]
[1740399035844,0.0008498,95954.0,95946.0,0.10264569]
[1740399036261,0.0008498,95954.0,95947.0,0.156336]
[1740399037323,0.0008498,95954.0,95946.0,0.10264569]
[1740399037522,0.0008498,95954.0,95948.0,0.156333]
[1740399037749,0.0008498,95954.0,95949.0,0.156332]
[1740399037954,0.0008498,95954.0,95950.0,0.156331]
[1740399038181,0.0008498,95954.0,95946.0,0.10264569]
[1740399038407,0.0008498,95954.0,95953.0,0.156326]
[1740399038541,0.0008498,95954.0,95953.0,0.25897169]
[1740399040386,0.0008498,95954.0,95953.0,0.26097169]
[1740399041262,0.0008498,95954.0,95953.0,0.10564569]
[1740399041387,0.0008498,95954.0,95953.0,0.26197169]
[1740399041642,0.00057361,95954.0,95953.0,0.26197169]
[1740399046187,0.00057361,95954.0,95953.0,0.10564569]
[1740399048043,0.17539845,95963.0,95953.0,0.10564569]
[1740399048246,0.33170945,95963.0,95953.0,0.10564569]
[1740399048451,0.156312,95962.0,95953.0,0.10564569]
[1740399048875,0.33170945,95963.0,95953.0,0.10564569]
[1740399049089,0.156313,95962.0,95953.0,0.10564569]
[1740399049195,0.156313,95962.0,95953.0,0.10364569]
[1740399049810,0.0467602,95961.0,95946.0,0.0016994]
[1740399050020,0.306336,95947.0,95946.0,0.0016994]
[1740399050253,0.429136,95947.0,95946.0,0.0016994]
[1740399055141,0.43697804,95947.0,95946.0,0.0016994]
[1740399063983,0.43672249,95947.0,95946.0,0.0016994]
[1740399065662,0.39142249,95947.0,95946.0,0.0016994]
[1740399065866,0.31392249,95947.0,95946.0,0.0016994]
[1740399067616,0.15,95947.0,95946.0,0.0016994]
[1740399071350,0.306336,95947.0,95946.0,0.0016994]
[1740399071563,0.15,95947.0,95946.0,0.0016994]
[1740399071809,0.3077962,95947.0,95946.0,0.0016994]
[1740399071964,0.306336,95947.0,95946.0,0.0016994]
[1740399075206,0.32087685,95947.0,95946.0,0.0016994]
[1740399075405,0.40282665,95947.0,95946.0,0.0016994]
[1740399075613,0.41072779,95947.0,95946.0,0.0016994]
[1740399076973,0.83927348,95947.0,95946.0,0.0016994]
[1740399077106,0.83927348,95947.0,95940.0,0.0016982]
[1740399077107,0.32088285,95943.0,95940.0,0.0016982]
[1740399077448,0.83272854,95943.0,95942.0,4e-07]
[1740399077647,0.156346,95941.0,95940.0,2e-07]
[1740399077796,0.50259274,95941.0,95940.0,2e-07]
[1740399077993,0.50113254,95941.0,95940.0,2e-07]
[1740399078850,0.306352,95937.0,95936.0,6e-07]
[1740399079049,0.51459854,95937.0,95936.0,6e-07]
[1740399079386,0.56029854,95937.0,95936.0,6e-07]
[1740399080241,0.15638,95920.0,95919.0,0.0016988]
[1740399080608,0.1578402,95920.0,95919.0,0.0016988]
[1740399081516,0.1578402,95920.0,95919.0,0.0046988]
[1740399081960,0.3078402,95920.0,95919.0,0.0046988]
[1740399082151,0.30638,95920.0,95919.0,0.0046988]
[1740399082354,0.30638,95920.0,95919.0,0.0086988]
[1740399087322,0.208504,95922.0,95919.0,0.0086988]
[1740399087566,0.15638,95920.0,95919.0,0.0086988]
[1740399087861,0.1578402,95920.0,95919.0,0.0086988]
[1740399088241,0.1578402,95920.0,95919.0,0.0016988]
[1740399088790,0.1578402,95920.0,95919.0,0.0036988]
[1740399089196,0.1578402,95920.0,95919.0,0.0066988]
[1740399089733,0.1578402,95920.0,95919.0,0.0036988]
[1740399089953,0.1578402,95920.0,95919.0,0.0046988]
[1740399090131,0.1578402,95920.0,95919.0,0.0076988]
[1740399093876,0.0014602,95920.0,95919.0,0.0076988]
[1740399094082,0.156379,95921.0,95919.0,0.0076988]
[1740399094295,0.15638,95920.0,95919.0,0.0076988]
[1740399094965,0.15638,95920.0,95919.0,0.0046988]
[1740399095165,0.15638,95920.0,95919.0,0.0076988]
[1740399095795,0.15638,95920.0,95919.0,0.0046988]
[1740399096222,0.15638,95920.0,95919.0,0.0076988]
[1740399096527,0.15638,95920.0,95919.0,0.0046988]
[1740399096735,0.15638,95920.0,95919.0,0.0076988]
[1740399098190,0.15723,95920.0,95919.0,0.0076988]
[1740399106723,0.15723,95920.0,95919.0,0.0046988]
[1740399107126,0.15723,95920.0,95919.0,0.0016988]
[1740399107368,0.15723,95920.0,95919.0,0.0076988]
[1740399107765,0.15723,95920.0,95919.0,0.0046988]
[1740399107970,0.1586902,95920.0,95919.0,0.0046988]
[1740399108131,0.1586902,95920.0,95919.0,0.0076988]
[1740399109495,0.15723,95920.0,95919.0,0.0076988]
[1740399110262,0.00085,95920.0,95919.0,0.0076988]
[1740399120452,0.04672188,95927.0,95919.0,0.0076988]
[1740399120670,0.00979042,95966.0,95919.0,0.0076988]
[1740399120671,0.156372,95925.0,95919.0,0.0076988]
[1740399120884,0.208494,95926.0,95919.0,0.0076988]
[1740399121073,0.156374,95924.0,95919.0,0.0076988]
[1740399121525,0.156374,95924.0,95919.0,0.0016988]
[1740399121729,0.00085,95920.0,95919.0,0.0016988]
[1740399122362,0.00085,95920.0,95919.0,0.0026988]
[1740399122610,0.00085,95920.0,95919.0,0.0016988]
[1740399122810,0.00085,95920.0,95919.0,0.0046988]
[1740399123471,0.00085,95920.0,95919.0,0.0066988]
[1740399124471,0.00085,95920.0,95919.0,0.0046988]
[1740399124900,0.00085,95920.0,95919.0,0.0076988]
[1740399142288,0.15723,95920.0,95919.0,0.0076988]
[1740399142517,0.00085,95920.0,95919.0,0.0076988]
[1740399142954,0.1586902,95920.0,95919.0,0.0076988]
[1740399143460,0.2341902,95920.0,95919.0,0.0076988]
[1740399143711,0.23273,95920.0,95919.0,0.0076988]
[1740399144299,0.23273,95920.0,95919.0,0.0046988]
[1740399144567,0.23273,95920.0,95919.0,0.0056988]
[1740399145111,0.23273,95920.0,95919.0,0.0026988]
[1740399145781,0.23273,95920.0,95919.0,0.0046988]
[1740399146030,0.23273,95920.0,95919.0,0.0056988]
[1740399146281,0.23273,95920.0,95919.0,0.0026988]
[1740399146764,0.23273,95920.0,95919.0,0.0036988]
[1740399147483,0.156427,95891.0,95890.0,0.0459]
[1740399147924,0.0014602,95891.0,95880.0,0.0459]
[1740399148174,0.0014602,95890.0,95880.0,0.0459]
[1740399148402,0.14285278,95890.0,95880.0,0.0459]
[1740399148637,0.208588,95883.0,95880.0,0.0459]
[1740399148895,0.36503,95883.0,95880.0,0.04633128]
[1740399149177,0.01457399,95883.0,95880.0,0.04633128]
[1740399149651,0.14285278,95890.0,95880.0,0.04633128]
[1740399149652,0.14485278,95890.0,95880.0,0.05833128]
[1740399149886,0.156439,95884.0,95880.0,0.05333128]
[1740399150113,0.0014602,95883.0,95880.0,0.04633128]
[1740399150317,0.156442,95882.0,95880.0,0.05133128]
[1740399150527,0.156442,95882.0,95880.0,0.04633128]
[1740399150788,0.156442,95882.0,95880.0,0.05133128]
[1740399151048,0.1579032,95881.0,95880.0,0.05133128]
[1740399151299,0.0014602,95881.0,95880.0,0.00543128]
[1740399151593,0.1579032,95881.0,95880.0,0.01243128]
[1740399151809,0.1579032,95881.0,95880.0,0.00543128]
[1740399151955,0.1579032,95881.0,95880.0,0.00043128]
[1740399152163,0.1579032,95881.0,95880.0,0.01143128]
[1740399152591,0.1579032,95881.0,95880.0,0.00043128]
[1740399152793,0.1599032,95881.0,95880.0,0.01143128]
[1740399152992,0.1599032,95881.0,95880.0,0.00743128]
[1740399153360,0.1609032,95881.0,95880.0,0.01143128]
[1740399154743,0.0044602,95881.0,95880.0,0.01143128]
[1740399155023,0.002,95881.0,95880.0,0.00443128]
[1740399155259,0.003,95881.0,95880.0,0.19437697]
[1740399155786,0.003,95881.0,95880.0,0.39892197]
[1740399156205,0.003,95881.0,95880.0,0.40062157]
[1740399167798,0.003,95881.0,95880.0,0.37985109]
[1740399169348,0.0038501,95881.0,95880.0,0.37985109]
[1740399169757,0.14285278,95890.0,95880.0,0.22340609]
[1740399170001,0.14285278,95890.0,95881.0,0.10264569]
[1740399170465,0.14285278,95890.0,95883.0,0.156439]
[1740399170466,0.1574318,95890.0,95883.0,0.156439]
[1740399170661,0.1574318,95890.0,95884.0,0.10264569]
[1740399170883,0.01457902,95890.0,95884.0,0.10264569]
[1740399171152,0.14285278,95894.0,95884.0,0.10264569]
[1740399171720,0.29927578,95894.0,95884.0,0.10264569]
[1740399171996,0.14285278,95894.0,95884.0,0.10264569]
[1740399172201,0.1570989,95894.0,95884.0,0.10264569]
[1740399172495,0.1570989,95894.0,95884.0,0.10664569]
[1740399173523,0.156424,95893.0,95884.0,0.10664569]
[1740399173739,0.156428,95891.0,95884.0,0.10264569]
[1740399173894,0.156426,95892.0,95884.0,0.10264569]
[1740399174114,0.3135209,95894.0,95884.0,0.10564569]
[1740399174640,0.3135209,95894.0,95884.0,0.10264569]
[1740399174841,0.3135209,95894.0,95884.0,0.10664569]
[1740399175044,0.3135209,95894.0,95884.0,0.10864569]
[1740399175263,0.156424,95893.0,95884.0,0.10664569]
[1740399175469,0.1570989,95894.0,95884.0,0.10464569]
[1740399175698,0.1570989,95894.0,95884.0,0.10764569]
[1740399175904,0.3135229,95894.0,95884.0,0.10764569]
[1740399176396,0.1570989,95894.0,95885.0,0.156437]
[1740399176538,0.1570989,95894.0,95886.0,0.10264569]
[1740399176752,0.01424612,95894.0,95886.0,0.10264569]
[1740399176958,0.156422,95895.0,95886.0,0.10264569]
[1740399177815,0.14285278,95900.0,95886.0,0.10264569]
[1740399178072,0.156414,95899.0,95886.0,0.10264569]
[1740399178309,0.156414,95899.0,95888.0,0.156431]
[1740399178517,0.156414,95899.0,95887.0,0.208577]
[1740399178635,0.156414,95899.0,95880.0,0.1137604]
[1740399178636,0.01425595,95899.0,95898.0,0.156416]
[1740399178836,0.1578592,95909.0,95894.0,0.288262]
[1740399179036,0.156402,95907.0,95897.0,0.156416]
[1740399179251,0.15,95908.0,95894.0,0.0797]
[1740399179451,0.15,95908.0,95896.0,0.208559]
[1740399179452,0.14285278,95904.0,95896.0,0.208559]
[1740399179699,0.14285278,95904.0,95897.0,0.156417]
[1740399180419,0.15713666,95904.0,95897.0,0.156417]
[1740399180643,0.01428388,95904.0,95898.0,0.156415]
[1740399181045,0.001,95904.0,95898.0,0.156415]
[1740399181371,0.001,95904.0,95899.0,0.156414]
[1740399181756,0.001,95904.0,95900.0,0.156412]
[1740399181947,0.001,95904.0,95895.0,0.208561]
[1740399182177,0.1514602,95909.0,95895.0,0.208561]
[1740399182313,0.01449442,95904.0,95896.0,0.10264569]
[1740399182516,0.001,95904.0,95897.0,0.0485]
[1740399182717,0.001,95904.0,95903.0,0.156408]
[1740399182945,0.15,95912.0,95905.0,0.156403]
[1740399183177,0.15,95912.0,95906.0,0.156402]
[1740399183535,0.15,95912.0,95906.0,0.155402]
[1740399183754,0.15,95912.0,95907.0,0.1564]
[1740399183968,0.0140833,95914.0,95907.0,0.1564]
[1740399184184,0.0140833,95914.0,95907.0,0.156401]
[1740399184394,0.0014602,95918.0,95907.0,0.1564]
[1740399184598,0.156385,95917.0,95906.0,0.0779]
[1740399184802,0.156389,95915.0,95906.0,0.0779]
[1740399185658,0.156389,95915.0,95903.0,0.10264569]
[1740399185868,0.156389,95915.0,95904.0,0.10264569]
[1740399186011,0.208513,95917.0,95904.0,0.10264569]
[1740399186226,0.208513,95917.0,95906.0,0.001]
[1740399186436,0.156386,95917.0,95906.0,0.001]
[1740399186631,0.156387,95916.0,95906.0,0.001]
[1740399186948,0.156387,95916.0,95905.0,0.156404]
[1740399187381,0.01580525,95918.0,95904.0,0.10264569]
[1740399187551,0.156385,95917.0,95904.0,0.10264569]
[1740399187791,0.156385,95917.0,95906.0,0.001]
[1740399187994,0.156387,95916.0,95906.0,0.001]
[1740399188215,0.15,95919.0,95906.0,0.157402]
[1740399188216,0.156385,95917.0,95906.0,0.157402]
[1740399188386,0.156386,95917.0,95905.0,0.156404]
[1740399188644,0.156387,95916.0,95905.0,0.156404]
[1740399189035,0.156387,95916.0,95906.0,0.156403]
[1740399189160,0.156385,95917.0,95906.0,0.156403]
[1740399189394,0.156388,95916.0,95904.0,0.25905069]
[1740399189595,0.156389,95915.0,95904.0,0.25905169]
[1740399189795,0.208513,95917.0,95905.0,0.001]
[1740399190205,0.156387,95916.0,95905.0,0.156404]
[1740399190668,0.156387,95916.0,95906.0,0.156402]
[1740399190897,0.01392397,95918.0,95908.0,0.156398]
[1740399191015,0.17030697,95918.0,95908.0,0.156398]
[1740399191213,0.156383,95918.0,95906.0,0.209537]
[1740399191417,0.156383,95918.0,95907.0,0.1564]
[1740399191617,0.156383,95918.0,95908.0,0.156399]
[1740399191858,0.156383,95918.0,95907.0,0.156401]
[1740399192891,0.17067594,95918.0,95908.0,0.156399]
[1740399193324,0.00085,95917.0,95908.0,0.156399]
[1740399193944,0.00085,95917.0,95911.0,0.156394]
[1740399194368,0.00085,95917.0,95909.0,0.31117569]
[1740399194369,0.00085,95917.0,95909.0,0.10264569]
[1740399194520,0.00085,95917.0,95911.0,0.208524]
[1740399194730,0.00085,95917.0,95912.0,0.156391]
[1740399194935,0.00085,95917.0,95911.0,0.156394]
[1740399195164,0.00085,95917.0,95911.0,0.00012941]
[1740399195338,0.00085,95917.0,95912.0,0.156393]
[1740399195748,0.00085,95917.0,95911.0,0.00112941]
[1740399196165,0.00085,95917.0,95911.0,0.15752341]
[1740399196373,0.00085,95917.0,95911.0,0.00212941]
[1740399196588,0.00085,95917.0,95911.0,0.15752341]
[1740399196890,0.00085,95917.0,95912.0,0.001]
[1740399197192,0.00085,95917.0,95911.0,0.00212941]
[1740399197742,0.00085,95917.0,95911.0,0.00012941]